bitfinex/quotes_SOLUSD_20260220
["timestamp","ask_amount","ask_price","bid_price","bid_amount"]
[1771605048007,4.22117117,84.039,84.003,4.35649128]
[1771605048306,4.22117117,84.039,84.001,4.35649128]
[1771605048492,4.22117117,84.029,83.992,4.35649128]
[1771605048800,15.89893348,84.04,84.001,4.35649128]
[1771605049007,4.22117117,84.04,84.001,4.35649128]
[1771605049391,4.22117117,84.05,84.011,4.35649128]
[1771605049592,11.8978215,84.049,84.012,4.35649128]
[1771605049808,4.22117117,84.039,84.0,16.03425359]
[1771605049994,15.89893348,84.03,84.0,4.35649128]
[1771605050192,4.22117117,84.019,83.985,11.90680184]
[1771605051202,4.22117117,84.019,83.945,3.69383402]
[1771605051203,11.67776231,83.99,83.951,4.35649128]
[1771605051518,16.12621652,83.998,83.953,4.35649128]
[1771605051889,4.22117117,83.997,83.96,11.67776231]
[1771605052093,11.67776231,83.99,83.961,4.35649128]
[1771605052293,11.67776231,83.99,83.953,4.35649128]
[1771605052294,4.22117117,83.989,83.953,4.35649128]
[1771605053426,11.67776231,83.98,83.953,4.35649128]
[1771605053815,11.67776231,83.98,83.955,4.35649128]
[1771605055016,15.89893348,83.99,83.955,4.35649128]
[1771605055219,29.75839897,84.01,83.955,4.35649128]
[1771605055220,11.90459986,84.002,83.955,4.35649128]
[1771605055416,11.67776231,83.99,83.955,4.35649128]
[1771605055596,3.69383402,84.033,83.954,41.68949662]
[1771605055597,4.22117117,84.014,83.961,4.35649128]
[1771605055801,4.22117117,84.014,83.96,11.67776231]
[1771605055802,11.67776231,84.01,83.973,4.35649128]
[1771605056295,11.90348653,84.009,83.973,4.35649128]
[1771605057303,11.67776231,84.0,83.973,4.35649128]
[1771605057898,11.67776231,84.0,83.96,11.67776231]
[1771605057899,15.89893348,83.99,83.96,4.35649128]
[1771605058099,11.67776231,83.98,83.96,4.35649128]
[1771605058313,4.22117117,83.99,83.938,4.35649128]
[1771605058506,11.67776231,83.97,83.938,4.35649128]
[1771605058920,11.67776231,83.98,83.938,4.35649128]
[1771605059512,11.67776231,83.98,83.941,4.35649128]
[1771605059719,11.90773883,83.979,83.941,4.35649128]
[1771605059907,11.67776231,83.97,83.941,4.35649128]
[1771605060701,11.67776231,83.95,83.926,11.91525868]
[1771605060900,104.4,83.969,83.931,4.35649128]
[1771605061422,11.67776231,83.95,83.932,11.9144069]
[1771605061618,11.67776231,83.95,83.921,4.35649128]
[1771605061829,4.22117117,83.939,83.911,11.91738866]
[1771605062127,15.89893348,83.95,83.912,4.35649128]
[1771605062318,11.67776231,83.95,83.912,4.35649128]
[1771605062922,4.22117117,83.96,83.912,4.35649128]
[1771605063220,11.67776231,83.95,83.912,4.35649128]
[1771605063411,4.22117117,83.96,83.914,4.35649128]
[1771605063412,15.89893348,83.96,83.914,4.35649128]
[1771605063610,11.67776231,83.95,83.914,4.35649128]
[1771605064016,11.91057539,83.959,83.914,4.35649128]
[1771605064203,11.67776231,83.95,83.914,4.35649128]
[1771605064902,104.4,83.949,83.914,4.35649128]
[1771605065126,4.22117117,83.939,83.913,11.91710462]
[1771605065329,4.22117117,83.919,83.881,34.16061855]
[1771605065520,4.22117117,83.917,83.881,11.92165091]
[1771605065825,11.67776231,83.9,83.881,11.92165091]
[1771605066010,11.67776231,83.92,83.882,4.35649128]
[1771605066513,4.22117117,83.922,83.882,4.35649128]
[1771605066824,11.67776231,83.91,83.882,4.35649128]
[1771605067324,4.23893985,83.919,83.882,4.35649128]
[1771605067513,11.67776231,83.91,83.883,11.92136666]
[1771605067699,11.67776231,83.91,83.884,4.10222232]
[1771605067899,4.23893985,83.919,83.884,4.10222232]
[1771605068136,11.67776231,83.92,83.884,4.10222232]
[1771605068426,11.67776231,83.92,83.883,11.92136666]
[1771605068427,4.23893985,83.909,83.883,11.92136666]
[1771605069313,4.23893985,83.909,83.883,41.72478332]
[1771605069715,15.91670216,83.92,83.884,4.10222232]
[1771605069906,11.67776231,83.91,83.884,4.10222232]
[1771605070100,11.67776231,83.91,83.877,11.92221944]
[1771605070323,11.67776231,83.91,83.827,53.89313112]
[1771605070324,4.23893985,83.889,83.876,12.7352328]
[1771605070707,4.23893985,83.889,83.876,1e-08]
[1771605071406,4.23893985,83.889,83.856,11.92519905]
[1771605071725,11.67776231,83.88,83.857,11.9250629]
[1771605072920,11.67776231,83.88,83.858,4.10222232]
[1771605073126,4.19655045,83.921,83.858,4.10222232]
[1771605073313,11.67776231,83.9,83.861,4.10222232]
[1771605073515,11.67776231,83.91,83.871,4.10222232]
[1771605073715,11.67776231,83.91,83.873,4.10222232]
[1771605073920,11.67776231,83.92,83.873,4.10222232]
[1771605074311,11.67776231,83.92,83.881,4.10222232]
[1771605074507,23.63063063,83.93,83.891,4.10222232]
[1771605074816,11.67776231,83.93,83.891,4.10222232]
[1771605075008,11.67776231,83.92,83.891,4.10222232]
[1771605075727,11.67776231,83.93,83.893,4.10222232]
[1771605076131,11.68821923,83.93,83.901,4.10222232]
[1771605076335,11.67776231,83.95,83.911,4.10222232]
[1771605076512,4.19655045,83.957,83.911,4.10222232]
[1771605076706,11.67776231,83.96,83.921,4.10222232]
[1771605076707,23.53380766,83.96,83.921,4.10222232]
[1771605076932,23.58681139,83.97,83.931,4.10222232]
[1771605077131,4.19655045,83.959,83.918,4.10222232]
[1771605077339,4.19655045,83.969,83.918,4.10222232]
[1771605077553,11.67776231,83.96,83.921,4.10222232]
[1771605077837,11.67776231,83.96,83.923,4.10222232]
[1771605078012,11.67776231,83.95,83.923,4.10222232]
[1771605078212,4.19655045,83.967,83.923,4.10222232]
[1771605078412,11.67776231,83.96,83.923,4.10222232]
[1771605078835,23.4855084,83.97,83.923,4.10222232]
[1771605079040,11.67776231,83.95,83.923,4.10222232]
[1771605079344,11.67776231,83.94,83.922,11.9158266]
[1771605079519,11.67776231,83.93,83.9,4.10222232]
[1771605079714,11.67776231,83.94,83.902,4.10222232]
[1771605079916,11.67776231,83.95,83.902,4.10222232]
[1771605080134,11.67776231,83.94,83.902,4.10222232]
[1771605080843,11.67776231,83.93,83.902,4.10222232]
[1771605081746,11.67776231,83.93,83.903,11.91852496]
[1771605082442,11.67776231,83.91,83.88,11.92179303]
[1771605082745,11.67776231,83.9,83.88,11.92179303]
[1771605083447,11.67776231,83.92,83.881,4.10222232]
[1771605083920,15.91670216,83.92,83.882,41.72528074]
[1771605084241,4.23893985,83.919,83.882,41.72528074]
[1771605084441,4.23893985,83.909,83.882,11.92150878]
[1771605084650,11.67776231,83.91,83.883,4.10222232]
[1771605084818,15.91670216,83.92,83.883,4.10222232]
[1771605085019,15.91670216,83.93,83.883,4.10222232]
[1771605085219,15.91670216,83.93,83.89,11.67776231]
[1771605085435,4.23893985,83.94,83.901,4.10222232]
[1771605085651,4.23893985,83.939,83.901,4.10222232]
[1771605086027,4.23893985,83.939,83.903,4.10222232]
[1771605086525,11.67776231,83.94,83.903,4.10222232]
[1771605086718,4.23893985,83.949,83.903,4.10222232]
[1771605087846,4.23893985,83.959,83.921,4.10222232]
[1771605088156,4.23893985,83.949,83.922,11.9158266]
[1771605088329,11.67776231,83.95,83.923,4.10222232]
[1771605088530,4.23893985,83.959,83.923,4.10222232]
[1771605090133,4.23893985,83.959,83.925,4.10222232]
[1771605090951,108.63893985,83.969,83.93,11.67776231]
[1771605091136,108.63893985,83.969,83.931,4.10222232]
[1771605091446,104.4,83.969,83.931,4.10222232]
[1771605092158,104.4,83.969,83.933,4.10222232]
[1771605092938,104.4,83.969,83.941,4.10222232]
[1771605093257,108.63893985,83.978,83.941,4.10222232]
[1771605093435,4.23893985,83.977,83.941,4.10222232]
[1771605093755,11.67776231,83.97,83.941,4.10222232]
[1771605094253,4.23893985,83.977,83.943,4.10222232]
[1771605094931,104.4,83.978,83.943,4.10222232]
[1771605095133,4.23893985,83.989,83.951,4.10222232]
[1771605095337,4.23893985,83.979,83.942,41.69545637]
[1771605095538,4.23893985,83.979,83.942,45.79767869]
[1771605095757,41.66725023,83.999,83.943,4.10222232]
[1771605095758,11.67776231,83.97,83.943,4.10222232]
[1771605095938,15.91670216,83.97,83.943,4.10222232]
[1771605096343,15.91670216,83.97,83.944,11.9127037]
[1771605096553,4.23893985,83.968,83.944,11.9127037]
[1771605097235,11.67776231,83.98,83.945,4.22885366]
[1771605097451,15.86224031,83.98,83.945,4.22885366]
[1771605097655,4.184478,83.997,83.961,4.22885366]
[1771605097863,4.184478,83.969,83.944,11.9127037]
[1771605098198,4.184478,83.969,83.939,11.91331515]
[1771605098549,11.67776231,83.96,83.939,11.91331515]
[1771605098951,4.184478,83.968,83.939,11.91331515]
[1771605100354,4.184478,83.968,83.932,34.01452445]
[1771605100539,11.67776231,83.97,83.933,4.22885366]
[1771605101254,15.86224031,83.97,83.933,4.22885366]
[1771605102068,4.184478,83.97,83.933,4.22885366]
[1771605102452,4.184478,83.97,83.935,4.22885366]
[1771605102659,7.04158256,83.976,83.935,4.22885366]
[1771605102660,11.67776231,83.96,83.935,4.22885366]
[1771605102863,4.184478,83.968,83.935,4.22885366]
[1771605103555,15.86224031,83.96,83.934,11.914123]
[1771605103865,15.86224031,83.96,83.901,47.67497356]
[1771605103866,11.67776231,83.94,83.906,4.22885366]
[1771605104052,11.69771564,83.94,83.906,4.22885366]
[1771605105163,4.184478,83.957,83.911,4.22885366]
[1771605105372,11.69771564,83.95,83.911,4.22885366]
[1771605105749,7.04158256,83.976,83.931,4.22885366]
[1771605105750,4.184478,83.967,83.931,4.22885366]
[1771605105973,11.69771564,83.96,83.931,4.22885366]
[1771605106368,4.184478,83.949,83.91,11.69771564]
[1771605106549,11.69771564,83.94,83.909,4.22885366]
[1771605106869,4.184478,83.939,83.909,4.22885366]
[1771605107163,4.184478,83.939,83.91,41.71135739]
[1771605107769,4.184478,83.939,83.91,11.91753068]
[1771605107964,11.69771564,83.93,83.91,11.91753068]
[1771605108164,4.184478,83.938,83.91,11.91753068]
[1771605108364,11.69771564,83.93,83.91,11.91753068]
[1771605108668,4.184478,83.938,83.91,11.91753068]
[1771605109353,4.184478,83.938,83.907,29.79474751]
[1771605109552,16.09817325,83.938,83.907,29.79474751]
[1771605109758,4.184478,83.938,83.907,29.79474751]
[1771605109953,16.09817517,83.937,83.902,4.22885366]
[1771605110165,11.69771564,83.93,83.902,4.22885366]
[1771605110687,11.69771564,83.91,83.884,16.1500782]
[1771605111050,4.184478,83.919,83.885,4.22885366]
[1771605111264,11.69771564,83.91,83.885,4.22885366]
[1771605111477,11.69771564,83.91,83.886,11.92094032]
[1771605112456,4.184478,83.919,83.886,11.92094032]
[1771605112657,11.69771564,83.91,83.886,41.72329112]
[1771605112859,11.69771564,83.91,83.849,47.70448938]
[1771605112860,11.69771564,83.9,83.878,11.92193703]
[1771605113159,4.184478,83.889,83.856,11.92520511]
[1771605113354,11.69771564,83.87,83.845,4.22885366]
[1771605113551,11.69771564,83.87,83.854,12.18337161]
[1771605115060,4.184478,83.879,83.854,12.18337161]
[1771605115255,47.6655783,83.918,83.854,0.2579616]
[1771605115256,11.69771564,83.87,83.854,0.2579616]
[1771605115461,4.184478,83.892,83.855,4.22885366]
[1771605115771,47.6463231,83.952,83.854,12.18342354]
[1771605115772,15.88219364,83.9,83.861,4.22885366]
[1771605115974,4.184478,83.9,83.861,4.22885366]
[1771605116179,15.88219364,83.91,83.871,4.22885366]
[1771605116568,11.69771564,83.94,83.86,11.69771564]
[1771605116569,4.184478,83.899,83.86,11.69771564]
[1771605116770,4.184478,83.899,83.861,4.22885366]
[1771605117079,4.184478,83.889,83.854,41.99714739]
[1771605117475,4.184478,83.889,83.855,4.22885366]
[1771605117679,11.69771564,83.88,83.856,11.92520511]
[1771605117982,4.184478,83.889,83.857,4.22885366]
[1771605119970,4.184478,83.889,83.858,11.92492069]
[1771605120180,4.184478,83.889,83.858,41.73722243]
[1771605120382,4.184478,83.919,83.881,4.22885366]
[1771605120586,11.69771564,83.91,83.881,4.22885366]
[1771605120878,4.184478,83.909,83.871,4.22885366]
[1771605121182,11.69771564,83.9,83.871,4.22885366]
[1771605121378,4.184478,83.909,83.871,4.22885366]
[1771605122099,4.184478,83.908,83.861,4.22885366]
[1771605122274,4.184478,83.908,83.854,0.2579616]
[1771605122275,4.184478,83.879,83.854,0.2579616]
[1771605123681,4.184478,83.889,83.856,4.22885366]
[1771605123864,15.88219364,83.9,83.861,4.22885366]
[1771605124062,4.184478,83.898,83.861,4.22885366]
[1771605124269,4.184478,83.898,83.855,41.73871563]
[1771605124270,11.69771564,83.88,83.855,11.92534732]
[1771605124665,4.184478,83.869,83.84,0.1]
[1771605124864,4.184478,83.849,83.821,11.93018455]
[1771605125070,11.69771564,83.85,83.821,11.93018455]
[1771605125364,11.69771564,83.85,83.822,4.22885366]
[1771605125571,11.69771564,83.85,83.823,11.9298999]
[1771605125859,11.69771564,83.85,83.823,41.75464967]
[1771605126170,4.184478,83.859,83.824,4.08995874]
[1771605126382,11.69771564,83.87,83.831,4.08995874]
[1771605126577,11.69771564,83.86,83.831,4.08995874]
[1771605127158,4.21451713,83.859,83.823,11.9298999]
[1771605127361,4.21451713,83.849,83.822,11.93004223]
[1771605128887,11.69771564,83.85,83.82,4.20169583]
[1771605129380,11.92492069,83.858,83.821,4.10169583]
[1771605129586,4.21451713,83.857,83.82,11.79771564]
[1771605129782,11.69771564,83.84,83.82,0.1]
[1771605130289,4.21451713,83.849,83.82,0.1]
[1771605130670,11.69771564,83.86,83.822,41.75514781]
[1771605130890,11.69771564,83.87,83.831,4.10169583]
[1771605131078,4.21451713,83.859,83.823,4.10169583]
[1771605132084,4.21451713,83.859,83.825,4.10169583]
[1771605132291,4.21451713,83.869,83.831,4.10169583]
[1771605132588,11.69771564,83.87,83.841,4.10169583]
[1771605132772,15.91223277,83.87,83.841,4.10169583]
[1771605133169,47.65733012,83.933,83.824,41.75415154]
[1771605133170,11.69771564,83.9,83.861,4.10169583]
[1771605133490,4.21451713,83.909,83.871,4.10169583]
[1771605133688,4.21451713,83.909,83.88,11.69771564]
[1771605133882,4.21451713,83.909,83.871,4.10169583]
[1771605134193,4.21451713,83.909,83.87,11.69771564]
[1771605134194,4.21451713,83.909,83.873,4.10169583]
[1771605134394,11.8417759,83.92,83.891,4.10169583]
[1771605134572,11.69771564,83.93,83.891,4.10169583]
[1771605134766,4.21451713,83.94,83.891,4.10169583]
[1771605135085,11.69771564,83.94,83.911,4.10169583]
[1771605135286,4.21451713,83.949,83.911,4.10169583]
[1771605135767,11.69771564,83.96,83.921,4.10169583]
[1771605135976,11.69771564,83.94,83.91,4.10169583]
[1771605136176,4.21451713,83.929,83.899,4.10169583]
[1771605136390,11.69771564,83.92,83.889,4.10169583]
[1771605136686,4.21451713,83.927,83.892,4.10169583]
[1771605137087,4.21451713,83.919,83.88,11.69771564]
[1771605137287,4.21451713,83.919,83.836,47.71214746]
[1771605137288,4.21451713,83.909,83.874,11.92256471]
[1771605137487,4.21451713,83.909,83.875,4.10169583]
[1771605137794,4.21451713,83.889,83.85,4.10169583]
[1771605137997,11.69771564,83.88,83.85,4.10169583]
[1771605138194,4.21451713,83.889,83.85,15.79941147]
[1771605138510,47.65595546,83.935,83.861,4.10169583]
[1771605138511,4.21451713,83.897,83.861,4.10169583]
[1771605138670,4.21451713,83.909,83.871,4.10169583]
[1771605138986,4.21451713,83.899,83.861,4.10169583]
[1771605140089,4.21451713,83.899,83.87,11.69771564]
[1771605140396,4.21451713,83.899,83.861,11.9244941]
[1771605140607,4.21451713,83.897,83.861,11.9244941]
[1771605141070,4.21451713,83.897,83.861,41.73572935]
[1771605141267,4.21451713,83.897,83.862,4.10169583]
[1771605141685,11.69771564,83.89,83.862,4.10169583]
[1771605141873,4.21451713,83.897,83.862,4.10169583]
[1771605142077,4.21451713,83.908,83.871,4.10169583]
[1771605142280,4.21451713,83.918,83.881,4.10169583]
[1771605142794,11.91497474,83.928,83.891,4.10169583]
[1771605142995,4.21451713,83.938,83.901,4.10169583]
[1771605143178,11.69771564,83.93,83.901,4.10169583]
[1771605143788,4.21451713,83.937,83.901,4.10169583]
[1771605143995,11.69771564,83.93,83.901,4.10169583]
[1771605144205,4.21451713,83.929,83.89,11.69771564]
[1771605144576,4.21451713,83.929,83.891,4.10169583]
[1771605144780,4.21451713,83.929,83.893,4.10169583]
[1771605145969,11.69771564,83.9,83.871,11.92307233]
[1771605146173,4.21451713,83.909,83.872,4.10169583]
[1771605146776,4.21451713,83.907,83.873,11.92278802]
[1771605146997,7.04158256,83.927,83.89,15.79941147]
[1771605147195,7.04158256,83.927,83.891,4.10169583]
[1771605148212,7.04158256,83.927,83.901,4.10169583]
[1771605148404,7.04158256,83.927,83.873,149.03485029]
[1771605148405,4.41451713,83.97,83.911,4.10169583]
[1771605148707,23.60962755,83.95,83.913,4.10169583]
[1771605148999,1e-08,83.97,83.941,4.10169583]
[1771605149188,4.21451713,84.016,83.961,4.10169583]
[1771605149189,11.90348653,84.009,83.961,4.10169583]
[1771605149381,11.90348653,84.009,83.971,4.10169583]
[1771605149581,4.21451713,84.008,83.971,4.10169583]
[1771605150206,4.21451713,84.008,83.98,11.69771564]
[1771605150594,4.21451713,84.008,83.981,11.90745525]
[1771605150889,11.90222457,84.018,83.981,11.90745525]
[1771605151203,11.69771564,84.01,83.973,4.10169583]
[1771605151400,11.90222457,84.018,83.948,4.10169583]
[1771605151401,4.21451713,83.989,83.948,4.10169583]
[1771605151590,4.21451713,83.989,83.951,4.10169583]
[1771605151789,11.69771564,83.98,83.951,4.10169583]
[1771605152099,4.21451713,83.959,83.921,4.10169583]
[1771605152600,15.91223277,83.97,83.932,4.10169583]
[1771605152779,4.21451713,83.999,83.96,11.69771564]
[1771605152982,4.21451713,83.989,83.95,15.79941147]
[1771605153597,4.21451713,83.989,83.931,41.70092098]
[1771605153598,11.69771564,83.98,83.94,11.69771564]
[1771605153908,4.21451713,83.979,83.941,4.10169583]
[1771605155515,15.91223277,83.99,83.951,4.10169583]
[1771605156305,4.21451713,83.979,83.942,41.69545637]
[1771605156600,11.69771564,83.97,83.942,41.69545637]
[1771605156807,15.91223277,83.97,83.942,11.91298753]
[1771605157006,4.21451713,83.988,83.951,4.10169583]
[1771605157501,3.69383402,84.027,83.95,11.69771564]
[1771605157502,4.05044861,84.024,83.981,4.49476149]
[1771605157704,0.2,84.04,84.011,4.49476149]
[1771605157884,0.2,84.04,84.01,11.69771564]
[1771605158696,4.05044861,84.039,84.01,11.69771564]
[1771605158902,4.05044861,84.038,84.0,23.60247754]
[1771605159289,11.89923725,84.039,83.995,11.90539394]
[1771605159290,11.69771564,84.03,83.995,11.90539394]
[1771605159493,4.05044861,84.03,84.0,11.69771564]
[1771605159695,4.05044861,84.029,83.991,11.90602568]
[1771605159906,11.69771564,84.02,83.991,11.90602568]
[1771605160109,4.05044861,84.019,83.991,11.90602568]
[1771605160893,15.74816425,84.03,83.991,11.90602568]
[1771605161093,11.90065334,84.029,83.991,11.90602568]
[1771605161296,11.69771564,84.02,83.991,11.90602568]
[1771605161805,4.05044861,84.019,83.98,11.69771564]
[1771605162106,4.05044861,84.009,83.975,11.90830604]
[1771605163092,4.05044861,84.009,83.975,41.67907114]
[1771605163509,4.05044861,84.009,83.98,11.69771564]
[1771605163702,11.69771564,84.03,83.991,4.49476149]
[1771605163893,11.9009768,84.027,83.991,4.49476149]
[1771605164092,7.04158256,84.038,84.001,4.49476149]
[1771605164411,18.94109801,84.038,84.01,11.67372105]
[1771605164790,0.2,84.04,84.01,11.67372105]
[1771605165092,0.2,84.04,84.013,4.49476149]
[1771605166409,4.05044861,84.038,84.012,11.90306146]
[1771605166610,4.05044861,84.038,84.003,11.90433674]
[1771605167814,11.89952044,84.037,84.003,11.90433674]
[1771605168319,4.05044861,84.038,84.003,11.90433674]
[1771605168516,4.05044861,84.038,84.004,4.49476149]
[1771605168699,11.87372105,84.04,84.02,11.67372105]
[1771605168700,0.2,84.04,84.02,11.67372105]
[1771605169017,0.2,84.04,84.02,16.16848254]
[1771605169213,0.2,84.04,84.02,4.49476149]
[1771605169398,0.2,84.04,84.02,16.16848254]
[1771605169594,0.2,84.04,84.021,11.90178645]
[1771605170024,0.2,84.04,84.017,11.90231]
[1771605170215,11.89923725,84.039,84.012,11.90298804]
[1771605170400,4.05044861,84.038,84.012,11.90298804]
[1771605171395,0.2,84.04,84.012,11.90298804]
[1771605171900,0.2,84.04,84.012,16.39774953]
[1771605172302,11.87372105,84.04,84.012,16.39774953]
[1771605172501,0.2,84.04,84.012,16.39774953]
[1771605172697,11.87372105,84.04,84.012,16.39774953]
[1771605173632,11.89923725,84.039,84.012,16.39774953]
[1771605173826,11.67372105,84.03,84.001,11.90457056]
[1771605174011,11.67372105,84.01,83.979,4.49476149]
[1771605174203,11.67372105,84.03,83.991,4.49476149]
[1771605174615,41.64733039,84.039,83.981,11.90745525]
[1771605174616,11.67372105,84.01,83.981,11.90745525]
[1771605174813,11.67372105,84.01,83.982,4.49476149]
[1771605175103,15.72416966,84.02,83.982,4.49476149]
[1771605175522,4.05044861,84.019,83.984,4.49476149]
[1771605175829,11.90087531,84.028,83.991,4.49476149]
[1771605176012,11.89983124,84.035,84.001,4.49476149]
[1771605176323,11.89983124,84.035,83.983,41.6751009]
[1771605176324,0.2,84.04,84.011,4.49476149]
[1771605176501,11.87372105,84.04,84.011,4.49476149]
[1771605177025,0.2,84.04,84.011,4.49476149]
[1771605177227,4.05044861,84.029,83.992,4.49476149]
[1771605177402,11.67372105,84.01,83.983,34.26269071]
[1771605177920,11.67372105,84.02,83.983,4.49476149]
[1771605178622,15.72416966,84.03,83.991,4.49476149]
[1771605178924,4.05044861,84.029,83.991,4.49476149]
[1771605179511,11.67372105,84.02,83.981,4.49476149]
[1771605179711,4.05044861,84.019,83.981,4.49476149]
[1771605180221,4.05044861,84.028,83.99,11.67372105]
[1771605180428,11.89923725,84.039,84.001,4.49476149]
[1771605180620,4.05044861,84.029,83.991,4.49476149]
[1771605180923,4.05044861,84.038,84.001,4.49476149]
[1771605181625,4.05044861,84.038,83.982,41.67559714]
[1771605181626,4.05044861,84.029,83.992,4.49476149]
[1771605181917,11.67372105,84.02,83.992,4.49476149]
[1771605182124,11.67372105,84.01,83.982,11.90731347]
[1771605182305,4.05044861,84.009,83.974,11.90844785]
[1771605182504,4.05044861,83.989,83.96,11.91043353]
[1771605182719,15.72416966,84.01,83.971,4.49476149]
[1771605182920,4.05044861,84.009,83.971,4.49476149]
[1771605183118,11.67372105,84.0,83.971,4.49476149]
[1771605183304,4.05044861,84.009,83.971,4.49476149]
[1771605183719,11.67372105,84.01,83.971,4.49476149]
[1771605184318,41.65774,84.018,83.98,11.67372105]
[1771605184630,4.05044861,84.027,83.991,4.49476149]
[1771605184823,11.90036149,84.032,83.991,4.49476149]
[1771605185031,0.2,84.04,84.011,4.49476149]
[1771605185221,23.76863218,84.07,84.031,4.49476149]
[1771605185425,27.81908079,84.07,84.031,4.49476149]
[1771605185735,11.67372105,84.06,83.986,4.77908463]
[1771605185927,4.26555181,84.059,84.021,4.15497114]
[1771605186127,4.17327217,84.049,83.988,4.43929428]
[1771605186331,4.17327217,84.049,84.011,4.15497114]
[1771605186540,11.89796306,84.048,84.013,4.15497114]
[1771605187233,11.89654762,84.058,84.021,4.32323236]
[1771605187429,4.41111611,84.049,84.012,11.90306146]
[1771605187735,16.3075222,84.059,84.02,11.67372105]
[1771605187926,11.67372105,84.05,84.014,4.32323236]
[1771605188421,16.08483716,84.05,84.014,4.32323236]
[1771605188620,16.30893761,84.049,84.015,11.90263643]
[1771605188821,4.41111611,84.048,84.015,11.90263643]
[1771605189226,4.41111611,84.048,84.015,16.22586879]
[1771605189431,29.74101523,84.059,84.021,4.32323236]
[1771605189432,4.41111611,84.059,84.021,4.32323236]
[1771605189633,4.41111611,84.059,84.03,11.67372105]
[1771605189834,11.89654762,84.058,84.021,4.32323236]
[1771605190011,4.41111611,84.057,84.021,4.32323236]
[1771605190519,11.67372105,84.05,84.021,4.32323236]
[1771605190718,4.41111611,84.057,84.021,4.32323236]
[1771605190926,41.63791667,84.058,84.022,11.9016448]
[1771605190927,4.41111611,84.049,84.022,11.9016448]
[1771605191216,11.89683068,84.056,84.022,11.9016448]
[1771605191412,4.41111611,84.069,84.031,4.32323236]
[1771605191617,11.89513251,84.068,84.041,4.32323236]
[1771605192019,4.41111611,84.067,84.031,4.32323236]
[1771605193135,4.41111611,84.067,84.03,11.67372105]
[1771605193136,11.8954155,84.066,84.033,4.32323236]
[1771605193339,0.2,84.07,84.041,4.32323236]
[1771605193727,0.2,84.07,84.051,4.32323236]
[1771605194123,16.28483716,84.07,84.04,4.32323236]
[1771605194336,4.41111611,84.068,84.033,4.32323236]
[1771605194528,11.89499101,84.069,84.033,4.32323236]
[1771605194738,0.2,84.07,84.041,4.32323236]
[1771605195237,0.2,84.07,84.043,4.32323236]
[1771605195446,0.2,84.07,84.051,4.32323236]
[1771605196329,7.04158256,84.086,84.06,11.67372105]
[1771605196645,7.04158256,84.086,84.061,4.32323236]
[1771605197147,7.04158256,84.086,84.062,16.21921389]
[1771605197341,11.89214097,84.09,84.062,4.32323236]
[1771605197538,4.41111611,84.069,84.039,4.32323236]
[1771605197935,4.41111611,84.089,84.051,4.32323236]
[1771605198140,11.67372105,84.08,84.051,4.32323236]
[1771605198348,4.41111611,84.08,84.051,4.32323236]
[1771605198645,11.67372105,84.07,84.04,4.32323236]
[1771605198846,11.67372105,84.07,84.03,11.67372105]
[1771605198847,4.41111611,84.069,84.03,11.67372105]
[1771605199040,4.41111611,84.059,84.02,11.67372105]
[1771605199241,11.89654762,84.058,84.021,16.22501881]
[1771605199422,4.41111611,84.059,84.022,4.32323236]
[1771605199624,11.89647976,84.059,84.031,4.32323236]
[1771605199949,11.89407596,84.076,84.041,4.32323236]
[1771605200253,4.41111611,84.075,84.041,4.32323236]
[1771605200625,4.61111611,84.1,84.051,4.32323236]
[1771605200824,11.8907478,84.099,84.07,15.99695341]
[1771605201130,11.67372105,84.08,84.049,4.32323236]
[1771605201335,11.67372105,84.08,84.051,4.32323236]
[1771605201543,16.30469238,84.079,84.05,11.89767995]
[1771605201747,11.67372105,84.07,84.042,11.89881249]
[1771605202247,4.41111611,84.078,84.042,11.89881249]
[1771605203028,4.41111611,84.069,84.031,45.97452771]
[1771605203440,4.41111611,84.069,84.032,4.32323236]
[1771605203624,11.8938592,84.077,84.041,4.32323236]
[1771605204859,4.41111611,84.081,84.041,4.32323236]
[1771605204860,4.41111611,84.081,84.05,11.67372105]
[1771605205158,11.89117199,84.096,84.061,4.32323236]
[1771605205346,4.41111611,84.095,84.061,4.32323236]
[1771605205548,11.67372105,84.09,84.061,4.32323236]
[1771605205736,12.09073882,84.1,84.07,11.67372105]
[1771605205940,0.2,84.1,84.071,4.32323236]
[1771605206642,11.8907478,84.099,84.071,4.32323236]
[1771605207153,11.8907478,84.099,84.068,11.89509669]
[1771605207154,4.41111611,84.098,84.068,11.89509669]
[1771605207350,4.41111611,84.089,84.062,11.89584855]
[1771605207931,4.41111611,84.089,84.05,41.41781422]
[1771605208256,4.41111611,84.089,84.052,4.32323236]
[1771605209032,11.67372105,84.07,84.04,4.32323236]
[1771605209555,11.89343482,84.08,84.051,4.32323236]
[1771605210448,4.41111611,84.116,84.039,41.64720405]
[1771605210649,11.67372105,84.1,84.071,4.32323236]
[1771605210841,4.41111611,84.099,84.071,4.32323236]
[1771605211041,11.8908892,84.098,84.062,4.32323236]
[1771605211441,4.41111611,84.089,84.057,11.89664353]
[1771605211754,4.41111611,84.089,84.06,15.99695341]
[1771605211952,4.41111611,84.089,84.061,4.32323236]